fUSD/lending_fUSD_20240624
["ID","MTS","AMOUNT","RATE_DAILY","PERIOD"]
[330282820,1719227452701,-500.0,0.00019452,4]
[330282821,1719227452711,-500.0,0.00019452,4]
[330282822,1719227452721,-531.42,0.00019452,4]
[330282823,1719227452730,-882.31,0.00019452,4]
[330282824,1719227452740,-496.16044636,0.00019452,4]
[330282825,1719227452749,-1322.53,0.00019452,4]
[330282826,1719227452758,-752.85,0.00019452,4]
[330282827,1719227452767,-500.0,0.00019452,4]
[330282828,1719227452777,-500.0,0.00019452,4]
[330282829,1719227452786,-2547.28,0.00019452,4]
[330282830,1719227452795,-301.39757,0.00019452,2]
[330282831,1719227452804,-500.0,0.00019452,4]
[330282832,1719227452814,-500.0,0.00019452,4]
[330282833,1719227452823,-829.83,0.00019452,4]
[330282834,1719227452834,-500.0,0.00019452,4]
[330282835,1719227452843,-500.0,0.00019452,4]
[330282836,1719227452852,-1744.56,0.00019452,4]
[330282837,1719227452861,-316.52,0.00019452,4]
[330282838,1719227452871,-1565.6,0.00019452,4]
[330282839,1719227452880,-524.33,0.00019452,4]
[330282840,1719227452889,-500.0,0.00019452,4]
[330282841,1719227452898,-1536.65,0.00019452,4]
[330282842,1719227452908,-500.0,0.00019452,4]
[330282843,1719227452917,-500.0,0.00019452,4]
[330282844,1719227452926,-500.0,0.00019452,4]
[330282845,1719227452935,-500.0,0.00019452,4]
[330282846,1719227452944,-500.0,0.00019452,4]
[330282847,1719227452953,-507.54,0.00019452,4]
[330282848,1719227452963,-692.84,0.00019452,4]
[330282849,1719227452972,-808.35,0.00019452,4]
[330282850,1719227452981,-1508.57,0.00019452,4]
[330282851,1719227452990,-500.0,0.00019452,4]
[330282852,1719227453003,-1240.27,0.00019452,4]
[330282853,1719227453012,-509.03,0.00019452,4]
[330282854,1719227453022,-297.28149,0.00019452,2]
[330282855,1719227453031,-297.28149,0.00019452,2]
[330282856,1719227453041,-297.28149,0.00019452,2]
[330282857,1719227453050,-467.19,0.00019452,4]
[330282858,1719227453059,-500.0,0.00019452,4]
[330282859,1719227453068,-599.2,0.00019452,2]
[330282860,1719227453078,-297.28149,0.00019452,2]
[330282861,1719227453089,-297.28149,0.00019452,2]
[330282862,1719227453100,-297.28149,0.00019452,2]
[330282863,1719227453109,-707.68,0.00019452,4]
[330282864,1719227453120,-500.0,0.00019452,4]
[330282865,1719227453129,-1220.18,0.00019452,4]
[330282866,1719227453138,-500.0,0.00019452,4]
[330282867,1719227453147,-1122.86,0.00019452,4]
[330282868,1719227453158,-500.0,0.00019452,4]
[330282869,1719227453167,-1252.44,0.00019452,4]
[330282870,1719227453176,-2357.18,0.00019452,4]
[330282871,1719227453186,-651.86,0.00019452,4]
[330282872,1719227453198,-500.0,0.00019452,4]
[330282873,1719227453207,-151.0,0.00019452,2]
[330282874,1719227453217,-151.0,0.00019452,2]
[330282875,1719227453226,-8542.86,0.00019452,4]
[330282876,1719227453235,-151.0,0.00019452,2]
[330282877,1719227453244,-511.43,0.00019452,4]
[330282878,1719227453253,-500.0,0.00019452,4]
[330282879,1719227453263,-500.0,0.00019452,4]
[330282880,1719227453272,-4132.83,0.00019452,4]
[330282881,1719227453281,-1084.55,0.00019452,4]
[330282882,1719227453291,-4922.54,0.00019452,4]
[330282883,1719227453301,-735.24,0.00019452,4]
[330282884,1719227453310,-500.0,0.00019452,4]
[330282885,1719227453319,-758.45,0.00019452,4]
[330282886,1719227453329,-3180.72,0.00019452,4]
[330282887,1719227453341,-500.0,0.00019452,4]
[330282888,1719227453351,-500.0,0.00019452,4]
[330282889,1719227453360,-500.0,0.00019452,4]
[330282890,1719227453369,-1036.51,0.00019452,4]
[330282891,1719227453379,-500.0,0.00019452,4]
[330282892,1719227453389,-500.0,0.00019452,4]
[330282893,1719227453398,-548.63,0.00019452,4]
[330282894,1719227453408,-500.0,0.00019452,4]
[330282895,1719227453417,-500.0,0.00019452,4]
[330282896,1719227453426,-652.79,0.00019452,4]
[330282897,1719227453436,-904.18,0.00019452,4]
[330282898,1719227453445,-2267.53,0.00019452,4]
[330282899,1719227453454,-412.03,0.00019452,4]
[330282900,1719227453463,-2983.38,0.00019452,4]
[330282901,1719227453473,-1265.02,0.00019452,4]
[330282902,1719227453483,-731.76,0.00019452,4]
[330282903,1719227453492,-151.0,0.00019452,2]
[330282904,1719227453502,-1690.39,0.00019452,4]
[330282905,1719227453512,-722.24,0.00019452,4]
[330282906,1719227453522,-1208.06,0.00019452,4]
[330282907,1719227453532,-844.76,0.00019452,4]
[330282908,1719227453542,-657.83,0.00019452,4]
[330282909,1719227453551,-1159.62,0.00019452,4]
[330282910,1719227453561,-500.0,0.00019452,4]
[330282911,1719227453571,-1888.33,0.00019452,4]
[330282912,1719227453580,-1051.38,0.00019452,4]
[330282913,1719227453793,-500.0,0.00019452,4]
[330282914,1719227453803,-527.93,0.00019452,4]
[330282915,1719227453813,-1353.28,0.00019452,4]
[330282916,1719227453822,-762.37,0.00019452,4]
[330282917,1719227453833,-820.87,0.00019452,4]
[330282918,1719227453844,-2837.89,0.00019452,4]
[330282919,1719227453853,-500.0,0.00019452,4]
[330282920,1719227453862,-500.0,0.00019452,2]
[330282921,1719227453872,-554.06057638,0.00019452,4]
[330282922,1719227453881,-218.68165439,0.00019452,4]
[330282923,1719227453890,-500.0,0.00019452,4]
[330282924,1719227453900,-500.0,0.00019452,4]
[330282925,1719227453909,-292.51958646,0.00019452,4]
[330282926,1719227453919,-500.0,0.00019452,4]
[330282927,1719227453928,-151.0,0.00019452,2]
[330282928,1719227453938,-736.85,0.00019452,4]
[330282929,1719227453947,-605.03859516,0.00019452,4]
[330282930,1719227453957,-4743.4911453,0.00019476,2]
[330282931,1719227453966,-197.09674146,0.00019489,2]
[330282932,1719227453976,-3106.94505996,0.00019499,2]
[330282933,1719227453985,-68039.5644889,0.00019507,2]
[330282934,1719227453995,-174.0,0.0001952,2]
[330282935,1719227454004,-200.0,0.00019568,2]
[330282936,1719227454014,-500.0,0.00019568,2]
[330282937,1719227454023,-153.5,0.00019584,2]
[330282938,1719227454033,-1470.0,0.00019592,2]
[330282939,1719227454042,-1370.56006709,0.00019626,2]
[330282940,1719227454052,-197.09674146,0.00019695,2]
[330282941,1719227454061,-5000.0,0.00019699,2]
[330282942,1719227454071,-155.0,0.00019724,2]
[330282943,1719227454080,-5148.19,0.00019725,4]
[330282944,1719227454097,-523.33,0.00019726,4]
[330282945,1719227454112,-882.49,0.00019726,4]
[330282946,1719227454121,-553.31,0.00019726,4]
[330282947,1719227454130,-536.2,0.00019726,4]
[330282948,1719227454140,-500.0,0.00019726,4]
[330282949,1719227454152,-620.41,0.00019726,4]
[330282950,1719227454161,-745.38,0.00019726,4]
[330282951,1719227454171,-713.68,0.00019726,4]
[330282952,1719227454183,-947.94,0.00019726,4]
[330282953,1719227454193,-500.0,0.00019726,4]
[330282954,1719227454203,-500.0,0.00019726,4]
[330282955,1719227454213,-500.0,0.00019726,4]
[330282956,1719227454222,-500.0,0.00019726,4]
[330282957,1719227454232,-500.0,0.00019726,4]
[330282958,1719227454243,-500.0,0.00019726,4]
[330282959,1719227454252,-500.0,0.00019726,4]
[330282960,1719227454262,-500.0,0.00019726,4]
[330282961,1719227454271,-500.0,0.00019726,4]
[330282962,1719227454280,-530.29,0.00019726,4]
[330282963,1719227454290,-500.0,0.00019726,4]
[330282964,1719227454300,-500.0,0.00019726,4]
[330282965,1719227454309,-500.0,0.00019726,4]
[330282966,1719227454319,-500.0,0.00019726,4]
[330282967,1719227454329,-500.0,0.00019726,4]
[330282968,1719227454343,-500.0,0.00019726,4]
[330282969,1719227454352,-1473.52,0.00019726,4]
[330282970,1719227454362,-500.0,0.00019726,4]
[330282971,1719227454371,-500.0,0.00019726,4]
[330282972,1719227454380,-500.0,0.00019726,4]
[330282973,1719227454389,-500.0,0.00019726,4]
[330282974,1719227454398,-500.0,0.00019726,4]
[330282975,1719227454408,-500.0,0.00019726,4]
[330282976,1719227454417,-1068.79,0.00019726,4]
[330282977,1719227454427,-500.0,0.00019726,4]
[330282978,1719227454436,-750.11,0.00019726,4]
[330282979,1719227454446,-500.0,0.00019726,4]
[330282980,1719227454456,-500.0,0.00019726,4]
[330282981,1719227454465,-500.0,0.00019726,4]
[330282982,1719227454475,-500.0,0.00019726,4]
[330282983,1719227454484,-500.0,0.00019726,4]
[330282984,1719227454493,-510.78,0.00019726,4]
[330282985,1719227454503,-626.73,0.00019726,4]
[330282986,1719227454512,-500.0,0.00019726,4]
[330282987,1719227454522,-500.0,0.00019726,4]
[330282988,1719227454532,-500.0,0.00019726,4]
[330282989,1719227454542,-500.0,0.00019726,4]
[330282990,1719227454551,-500.0,0.00019726,4]
[330282991,1719227454561,-500.0,0.00019726,4]
[330282992,1719227454570,-500.0,0.00019726,4]
[330282993,1719227454580,-522.79,0.00019726,4]
[330282994,1719227454591,-1714.53,0.00019726,4]
[330282995,1719227454600,-578.47,0.00019726,4]
[330282996,1719227454610,-500.0,0.00019726,4]
[330282997,1719227454619,-585.27,0.00019726,4]
[330282998,1719227454629,-874.46,0.00019726,4]
[330282999,1719227454639,-500.0,0.00019726,4]
[330283000,1719227454649,-500.0,0.00019726,4]
[330283001,1719227454660,-533.54,0.00019726,4]
[330283002,1719227454670,-1377.28,0.00019726,4]
[330283003,1719227454680,-500.0,0.00019726,4]
[330283004,1719227454690,-250.0,0.00019726,4]
[330283005,1719227454700,-822.94,0.00019726,4]
[330283006,1719227454709,-500.0,0.00019726,4]
[330283007,1719227454719,-965.57,0.00019726,4]
[330283008,1719227454728,-707.57,0.00019726,4]
[330283009,1719227454738,-500.0,0.00019726,4]
[330283010,1719227454748,-500.0,0.00019726,4]
[330283011,1719227454758,-500.0,0.00019726,4]
[330283012,1719227454767,-651.35,0.00019726,4]
[330283013,1719227454777,-500.0,0.00019726,4]
[330283014,1719227454787,-528.6,0.00019726,4]
[330283015,1719227454797,-500.0,0.00019726,4]
[330283016,1719227454807,-1322.51,0.00019726,4]
[330283017,1719227454817,-500.0,0.00019726,4]
[330283018,1719227454827,-1132.75,0.00019726,4]
[330283019,1719227454839,-500.0,0.00019726,4]
[330283020,1719227454849,-982.24,0.00019726,4]
[330283021,1719227454859,-826.6,0.00019726,4]
[330283022,1719227454869,-500.0,0.00019726,4]
[330283023,1719227454879,-500.08,0.00019726,4]
[330283024,1719227454889,-519.36,0.00019726,4]
[330283025,1719227454899,-516.0,0.00019726,4]
[330283026,1719227454909,-500.0,0.00019726,4]
[330283027,1719227454919,-852.64,0.00019726,4]
[330283028,1719227454928,-926.26,0.00019726,4]
[330283029,1719227454938,-622.489192,0.00019726,4]
[330283030,1719227454948,-1257.17,0.00019726,4]
[330283031,1719227454958,-1328.66,0.00019726,4]
[330283032,1719227454968,-1171.93,0.00019726,4]
[330283033,1719227454978,-533.85,0.00019726,4]
[330283034,1719227454988,-500.0,0.00019726,4]
[330283035,1719227454997,-500.0,0.00019726,4]
[330283036,1719227455006,-500.0,0.00019726,4]
[330283037,1719227455016,-500.0,0.00019726,4]
[330283038,1719227455026,-500.0,0.00019726,4]
[330283039,1719227455036,-500.0,0.00019726,4]
[330283040,1719227455046,-500.0,0.00019726,4]
[330283041,1719227455056,-540.82,0.00019726,4]
[330283042,1719227455066,-500.0,0.00019726,4]
[330283043,1719227455076,-859.12,0.00019726,4]
[330283044,1719227455087,-500.0,0.00019726,4]
[330283045,1719227455097,-500.0,0.00019726,4]
[330283046,1719227455106,-545.07584414,0.00019726,4]
[330283047,1719227455118,-500.0,0.00019726,4]
[330283048,1719227455127,-500.0,0.00019726,4]
[330283049,1719227455138,-500.0,0.00019726,4]
[330283050,1719227455148,-500.0,0.00019726,4]
[330283051,1719227455158,-500.0,0.00019726,4]
[330283052,1719227455168,-500.0,0.00019726,4]
[330283053,1719227455178,-500.0,0.00019726,4]
[330283054,1719227455188,-500.0,0.00019726,4]
[330283055,1719227455199,-565.0,0.00019726,4]
[330283056,1719227455208,-636.52,0.00019726,4]
[330283057,1719227455218,-500.0,0.00019726,4]
[330283058,1719227455228,-2177.97,0.00019726,4]
[330283059,1719227455237,-500.0,0.00019726,4]
[330283060,1719227455247,-500.0,0.00019726,4]
[330283061,1719227455256,-500.0,0.00019726,4]
[330283062,1719227455266,-500.0,0.00019726,4]
[330283063,1719227455276,-514.53,0.00019726,4]
[330283064,1719227455285,-500.0,0.00019726,4]
[330283065,1719227455294,-500.0,0.00019726,4]
[330283066,1719227455304,-500.0,0.00019726,4]
[330283067,1719227455314,-767.4,0.00019726,4]
[330283068,1719227455323,-546.78,0.00019726,4]
[330283069,1719227455333,-554.12,0.00019726,4]
[330283070,1719227455345,-661.75,0.00019726,4]
[330283071,1719227455355,-500.0,0.00019726,4]
[330283072,1719227455365,-515.54,0.00019726,4]
[330283073,1719227455375,-500.0,0.00019726,4]
[330283074,1719227455384,-500.0,0.00019726,4]
[330283075,1719227455393,-500.0,0.00019726,4]
[330283076,1719227455403,-500.0,0.00019726,4]
[330283077,1719227455413,-500.0,0.00019726,4]
[330283078,1719227455423,-500.0,0.00019726,4]
[330283079,1719227455433,-371.84,0.00019726,4]
[330283080,1719227455443,-151.0,0.00019726,2]
[330283081,1719227455453,-151.0,0.00019726,2]
[330283082,1719227455463,-151.0,0.00019726,2]
[330283083,1719227455472,-570.24,0.00019726,4]
[330283084,1719227455482,-727.74,0.00019726,4]
[330283085,1719227455491,-500.0,0.00019726,4]
[330283086,1719227455501,-500.0,0.00019726,4]
[330283087,1719227455510,-683.43,0.00019726,4]
[330283088,1719227455519,-151.0,0.00019726,2]
[330283089,1719227455529,-500.0,0.00019726,4]
[330283090,1719227455538,-151.0,0.00019726,2]
[330283091,1719227455548,-151.0,0.00019726,2]
[330283092,1719227455558,-537.24,0.00019726,4]
[330283093,1719227455568,-767.2,0.00019726,4]
[330283094,1719227455578,-713.85,0.00019726,4]
[330283095,1719227455588,-500.0,0.00019726,4]
[330283096,1719227455597,-500.0,0.00019726,4]
[330283097,1719227455607,-500.0,0.00019726,4]
[330283098,1719227455617,-500.0,0.00019726,4]
[330283099,1719227455626,-500.0,0.00019726,4]
[330283100,1719227455636,-500.0,0.00019726,4]
[330283101,1719227455647,-500.0,0.00019726,4]
[330283102,1719227455657,-682.05,0.00019726,4]
[330283103,1719227455666,-671.32,0.00019726,4]
[330283104,1719227455676,-500.0,0.00019726,4]
[330283105,1719227455686,-500.0,0.00019726,4]
[330283106,1719227455695,-500.0,0.00019726,4]
[330283107,1719227455705,-617.07,0.00019726,4]
[330283108,1719227455715,-685.33,0.00019726,4]
[330283109,1719227455725,-500.0,0.00019726,4]
[330283110,1719227455734,-500.0,0.00019726,4]
[330283111,1719227455743,-500.0,0.00019726,4]
[330283112,1719227455755,-517.48,0.00019726,4]
[330283113,1719227455765,-509.08,0.00019726,4]
[330283114,1719227455774,-500.0,0.00019726,4]
[330283115,1719227455783,-500.0,0.00019726,4]
[330283116,1719227455792,-500.0,0.00019726,4]
[330283117,1719227455801,-500.0,0.00019726,4]
[330283118,1719227455810,-500.0,0.00019726,4]
[330283119,1719227455819,-500.0,0.00019726,4]
[330283120,1719227455829,-500.0,0.00019726,4]
[330283121,1719227455840,-500.0,0.00019726,4]
[330283122,1719227455851,-500.0,0.00019726,4]
[330283123,1719227455861,-670.93,0.00019726,4]
[330283124,1719227455870,-521.91,0.00019726,4]
[330283125,1719227455880,-264.52147934,0.00019726,4]
[330283126,1719227455889,-630.83,0.00019726,4]
[330283127,1719227455899,-500.0,0.00019726,4]
[330283128,1719227455908,-500.0,0.00019726,4]
[330283129,1719227455918,-151.0,0.00019726,2]
[330283130,1719227455928,-725.26,0.00019726,4]
[330283131,1719227455938,-1014.83,0.00019726,4]
[330283132,1719227455947,-243.664624,0.00019726,2]
[330283133,1719227455957,-500.0,0.00019726,4]
[330283134,1719227455967,-500.0,0.00019726,4]
[330283135,1719227455977,-503.86,0.00019726,4]
[330283136,1719227455987,-500.0,0.00019726,4]
[330283137,1719227455996,-647.73,0.00019726,4]
[330283138,1719227456006,-1099.95,0.00019726,4]
[330283139,1719227456015,-500.0,0.00019726,4]
[330283140,1719227456026,-521.47,0.00019726,4]
[330283141,1719227456035,-500.0,0.00019726,4]
[330283142,1719227456045,-500.0,0.00019726,4]
[330283143,1719227456054,-510.53,0.00019726,4]
[330283144,1719227456065,-2287.13,0.00019726,4]
[330283145,1719227456074,-581.42,0.00019726,4]
[330283146,1719227456084,-500.0,0.00019726,4]
[330283147,1719227456099,-500.0,0.00019726,4]
[330283148,1719227456108,-606.67,0.00019726,4]
[330283149,1719227456177,-500.0,0.00019726,4]
[330283150,1719227456189,-500.0,0.00019726,4]
[330283151,1719227456199,-500.0,0.00019726,4]
[330283152,1719227456209,-500.0,0.00019726,4]
[330283153,1719227456219,-690.29,0.00019726,4]
[330283154,1719227456228,-500.0,0.00019726,4]
[330283155,1719227456238,-1691.07,0.00019726,4]
[330283156,1719227456247,-500.0,0.00019726,4]
[330283157,1719227456256,-500.0,0.00019726,4]
[330283158,1719227456266,-500.0,0.00019726,4]
[330283159,1719227456275,-592.13,0.00019726,4]
[330283160,1719227456285,-500.0,0.00019726,4]
[330283161,1719227456294,-547.8,0.00019726,4]
[330283162,1719227456304,-524.89,0.00019726,4]
[330283163,1719227456314,-557.89,0.00019726,4]
[330283164,1719227456324,-723.74,0.00019726,4]
[330283165,1719227456333,-1679.0,0.00019726,4]
[330283166,1719227456345,-590.08,0.00019726,4]
[330283167,1719227456354,-500.0,0.00019726,4]
[330283168,1719227456363,-500.0,0.00019726,4]
[330283169,1719227456373,-500.0,0.00019726,4]
[330283170,1719227456383,-500.0,0.00019726,4]
[330283171,1719227456392,-500.0,0.00019726,4]
[330283172,1719227456402,-746.8,0.00019726,4]
[330283173,1719227456412,-500.0,0.00019726,4]
[330283174,1719227456422,-595.07,0.00019726,4]
[330283175,1719227456431,-555.54,0.00019726,4]
[330283176,1719227456441,-356.798257,0.00019726,2]
[330283177,1719227456451,-1436.46,0.00019726,4]
[330283178,1719227456460,-634.31,0.00019726,4]
[330283179,1719227456470,-356.798257,0.00019726,2]
[330283180,1719227456479,-356.798257,0.00019726,2]
[330283181,1719227456489,-356.798257,0.00019726,2]
[330283182,1719227456498,-691.66,0.00019726,4]
[330283183,1719227456507,-500.0,0.00019726,4]
[330283184,1719227456517,-715.78,0.00019726,4]
[330283185,1719227456526,-500.0,0.00019726,4]
[330283186,1719227456535,-587.85,0.00019726,4]
[330283187,1719227456545,-500.0,0.00019726,4]
[330283188,1719227456555,-582.73,0.00019726,4]
[330283189,1719227456564,-500.0,0.00019726,4]
[330283190,1719227456573,-500.0,0.00019726,4]
[330283191,1719227456583,-500.0,0.00019726,4]
[330283192,1719227456593,-500.0,0.00019726,4]
[330283193,1719227456602,-507.58,0.00019726,4]
[330283194,1719227456610,-500.0,0.00019726,4]
[330283195,1719227456620,-500.0,0.00019726,4]
[330283196,1719227456629,-547.47,0.00019726,4]
[330283197,1719227456639,-649.26,0.00019726,4]
[330283198,1719227456648,-500.0,0.00019726,4]
[330283199,1719227456657,-649.11,0.00019726,4]
[330283200,1719227456667,-500.0,0.00019726,4]
[330283201,1719227456677,-970.890068,0.00019726,2]
[330283202,1719227456686,-970.890068,0.00019726,2]
[330283203,1719227456696,-970.890068,0.00019726,2]
[330283204,1719227456705,-1471.98,0.00019726,4]
[330283205,1719227456715,-713.27,0.00019726,4]
[330283206,1719227456725,-151.0,0.00019726,2]
[330283207,1719227456734,-151.0,0.00019726,2]
[330283208,1719227456743,-151.0,0.00019726,2]
[330283209,1719227456753,-538.933405,0.00019726,2]
[330283210,1719227456762,-538.933405,0.00019726,2]
[330283211,1719227456772,-879.11,0.00019726,4]
[330283212,1719227456781,-538.933405,0.00019726,2]
[330283213,1719227456791,-1444.26,0.00019726,4]
[330283214,1719227456800,-1363.53,0.00019726,4]
[330283215,1719227456810,-500.0,0.00019726,4]
[330283216,1719227456819,-500.0,0.00019726,4]
[330283217,1719227456829,-547.1,0.00019726,4]
[330283218,1719227456839,-538.933405,0.00019726,2]
[330283219,1719227456848,-538.933405,0.00019726,2]
[330283220,1719227456858,-538.933405,0.00019726,2]
[330283221,1719227456870,-500.0,0.00019726,4]
[330283222,1719227456879,-500.0,0.00019726,4]
[330283223,1719227456888,-500.0,0.00019726,4]
[330283224,1719227456898,-151.0,0.00019726,2]
[330283225,1719227456907,-225.52056,0.00019726,2]
[330283226,1719227456916,-1534.65,0.00019726,4]
[330283227,1719227456925,-500.0,0.00019726,4]
[330283228,1719227456934,-500.0,0.00019726,4]
[330283229,1719227456944,-4481.17,0.00019726,4]
[330283230,1719227456955,-914.55,0.00019726,4]
[330283231,1719227456965,-500.0,0.00019726,4]
[330283232,1719227456974,-500.0,0.00019726,4]
[330283233,1719227456983,-551.65,0.00019726,4]
[330283234,1719227456992,-700.84,0.00019726,4]
[330283235,1719227457002,-163.407634,0.00019726,2]
[330283236,1719227457012,-730.61,0.00019726,4]
[330283237,1719227457021,-500.0,0.00019726,4]
[330283238,1719227457030,-553.06412953,0.00019726,4]
[330283239,1719227457040,-546.19,0.00019726,4]
[330283240,1719227457049,-345.118452,0.00019726,2]
[330283241,1719227457058,-345.118452,0.00019726,2]
[330283242,1719227457067,-345.118452,0.00019726,2]
[330283243,1719227457076,-500.0,0.00019726,4]
[330283244,1719227457085,-345.118452,0.00019726,2]
[330283245,1719227457100,-345.118452,0.00019726,2]
[330283246,1719227457109,-345.118452,0.00019726,2]
[330283247,1719227457122,-443.36209809,0.00019726,4]
[330283248,1719227457131,-12080.04,0.00019726,4]
[330283249,1719227457140,-505.61,0.00019726,4]
[330283250,1719227457148,-593.86,0.00019726,4]
[330283251,1719227457158,-821.74,0.00019726,4]
[330283252,1719227457168,-646.22,0.00019726,4]
[330283253,1719227457177,-316.11372922,0.00019726,4]
[330283254,1719227457187,-237.05867,0.00019726,2]
[330283255,1719227457199,-237.05867,0.00019726,2]
[330283256,1719227457209,-237.05867,0.00019726,2]
[330283257,1719227457219,-1400.06,0.00019726,4]
[330283258,1719227457228,-1547.18,0.00019726,4]
[330283259,1719227457238,-500.0,0.00019726,4]
[330283260,1719227457247,-500.0,0.00019726,4]
[330283261,1719227457257,-237.05867,0.00019726,2]
[330283262,1719227457267,-237.05867,0.00019726,2]
[330283263,1719227457276,-237.05867,0.00019726,2]
[330283264,1719227457286,-500.0,0.00019726,4]
[330283265,1719227457295,-1251.17,0.00019726,4]
[330283266,1719227457305,-704.2,0.00019726,4]
[330283267,1719227457315,-246.220278,0.00019726,4]
[330283268,1719227457325,-670.95,0.00019726,4]
[330283269,1719227457335,-500.0,0.00019726,4]
[330283270,1719227457347,-2003.2,0.00019726,4]
[330283271,1719227457357,-518.35731279,0.00019726,4]
[330283272,1719227457367,-1071.8,0.00019726,4]
[330283273,1719227457377,-500.0,0.00019726,4]
[330283274,1719227457386,-662.98,0.00019726,4]
[330283275,1719227457396,-407.67372959,0.00019726,4]
[330283276,1719227457406,-151.0,0.00019726,2]
[330283277,1719227457417,-151.0,0.00019726,2]
[330283278,1719227457426,-908.91,0.00019726,4]
[330283279,1719227457436,-151.0,0.00019726,2]
[330283280,1719227457445,-500.0,0.00019726,4]
[330283281,1719227457454,-700.85,0.00019726,4]
[330283282,1719227457465,-729.51,0.00019726,4]
[330283283,1719227457476,-500.0,0.00019726,4]
[330283284,1719227457486,-810.58,0.00019726,4]
[330283285,1719227457495,-1187.06,0.00019726,4]
[330283286,1719227457505,-716.9,0.00019726,4]
[330283287,1719227457514,-687.38,0.00019726,4]
[330283288,1719227457523,-500.0,0.00019726,4]
[330283289,1719227457533,-500.0,0.00019726,4]
[330283290,1719227457543,-1135.05,0.00019726,4]
[330283291,1719227457553,-557.33223541,0.00019726,4]
[330283292,1719227457563,-500.0,0.00019726,4]
[330283293,1719227457573,-1116.7,0.00019726,4]
[330283294,1719227457583,-2509.026784,0.00019726,2]
[330283295,1719227457595,-2509.026784,0.00019726,2]
[330283296,1719227457605,-2509.026784,0.00019726,2]
[330283297,1719227457614,-500.0,0.00019726,4]
[330283298,1719227457624,-694.94,0.00019726,4]
[330283299,1719227457633,-1545.37,0.00019726,4]
[330283300,1719227457643,-547.63,0.00019726,4]
[330283301,1719227457653,-2174.81,0.00019726,4]
[330283302,1719227457663,-2509.026784,0.00019726,2]
[330283303,1719227457673,-500.0,0.00019726,4]
[330283304,1719227457684,-2509.026784,0.00019726,2]
[330283305,1719227457694,-2509.026784,0.00019726,2]
[330283306,1719227457704,-500.0,0.00019726,4]
[330283307,1719227457714,-500.0,0.00019726,4]
[330283308,1719227457724,-500.0,0.00019726,4]
[330283309,1719227457735,-531.42,0.00019726,4]
[330283310,1719227457744,-882.31,0.00019726,4]
[330283311,1719227457754,-1322.53,0.00019726,4]
[330283312,1719227457764,-752.85,0.00019726,4]
[330283313,1719227457774,-500.0,0.00019726,4]
[330283314,1719227457784,-500.0,0.00019726,4]
[330283315,1719227457794,-2547.28,0.00019726,4]
[330283316,1719227457803,-500.0,0.00019726,4]
[330283317,1719227457813,-500.0,0.00019726,4]
[330283318,1719227457823,-829.83,0.00019726,4]
[330283319,1719227457833,-500.0,0.00019726,4]